bitfinex-derivatives/quotes_SOLF0:USTF0_20260107
["timestamp","ask_amount","ask_price","bid_price","bid_amount"]
[1767822828340,0.31220704,136.21,136.16,6.9225878]
[1767822828539,5.64585214,136.2,136.16,6.9225878]
[1767822828736,0.31220704,136.21,136.16,6.9225878]
[1767822828934,5.64585214,136.2,136.16,6.9225878]
[1767822829139,0.31220704,136.21,136.16,6.9225878]
[1767822829336,5.64597364,136.2,136.16,6.9225878]
[1767822829544,0.31220704,136.21,136.16,6.9225878]
[1767822829845,5.64597364,136.2,136.16,6.9225878]
[1767822830044,0.31220704,136.21,136.16,6.9225878]
[1767822830250,5.64585021,136.2,136.16,6.9225878]
[1767822830443,0.31220704,136.21,136.16,6.9225878]
[1767822830644,5.64585021,136.2,136.16,6.9225878]
[1767822830942,0.31220704,136.21,136.16,6.9225878]
[1767822831138,5.64585021,136.2,136.16,6.9225878]
[1767822831339,0.31220704,136.21,136.16,6.9225878]
[1767822831540,5.64574679,136.2,136.16,6.9225878]
[1767822831745,0.31220704,136.21,136.16,6.9225878]
[1767822831946,5.64574679,136.2,136.16,6.9225878]
[1767822832246,0.31220704,136.21,136.16,6.9225878]
[1767822832448,5.64566285,136.2,136.16,6.9225878]
[1767822832648,0.31220704,136.21,136.16,6.9225878]
[1767822832851,5.64566285,136.2,136.16,6.9225878]
[1767822833053,0.31220704,136.21,136.16,6.9225878]
[1767822833253,5.64566285,136.2,136.16,6.9225878]
[1767822833456,0.31220704,136.21,136.16,6.9225878]
[1767822833657,5.64804226,136.2,136.16,6.9225878]
[1767822833858,0.31220704,136.21,136.16,6.9225878]
[1767822834052,5.64804226,136.2,136.16,6.9225878]
[1767822834254,0.31220704,136.21,136.16,6.9225878]
[1767822834554,5.64799527,136.2,136.16,6.9225878]
[1767822834752,0.31220704,136.21,136.16,6.9225878]
[1767822834951,5.64799527,136.2,136.16,6.9225878]
[1767822835146,0.31220704,136.21,136.16,6.9225878]
[1767822835361,5.64796676,136.2,136.16,6.9225878]
[1767822835560,0.31220704,136.21,136.16,6.9225878]
[1767822835758,5.64796676,136.2,136.16,6.9225878]
[1767822835957,0.31220704,136.21,136.16,6.9225878]
[1767822836160,5.64796676,136.2,136.16,6.9225878]
[1767822836458,0.31220704,136.21,136.16,6.9225878]
[1767822836658,5.6480831,136.2,136.16,6.9225878]
[1767822836861,0.31220704,136.21,136.16,6.9225878]
[1767822837059,5.6480831,136.2,136.16,6.9225878]
[1767822837354,0.31220704,136.21,136.16,6.9225878]
[1767822837556,5.64822954,136.2,136.16,6.9225878]
[1767822837756,0.31220704,136.21,136.16,6.9225878]
[1767822837956,5.64822954,136.2,136.16,6.9225878]
[1767822838155,0.31220704,136.21,136.16,6.9225878]
[1767822838355,5.64841179,136.2,136.16,6.9225878]
[1767822838562,0.31220704,136.21,136.16,6.9225878]
[1767822838762,5.64841179,136.2,136.16,6.9225878]
[1767822839062,0.31220704,136.21,136.16,6.9225878]
[1767822839261,5.64841179,136.2,136.16,6.9225878]
[1767822839464,0.31220704,136.21,136.16,6.9225878]
[1767822839655,5.64862552,136.2,136.16,6.9225878]
[1767822839855,0.31220704,136.21,136.16,6.9225878]
[1767822840154,5.64862552,136.2,136.16,6.9225878]
[1767822840353,0.31220704,136.21,136.16,6.9225878]
[1767822840553,5.64880845,136.2,136.16,6.9225878]
[1767822840750,0.31220704,136.21,136.16,6.9225878]
[1767822840955,5.64880845,136.2,136.16,6.9225878]
[1767822841153,0.31220704,136.21,136.16,6.9225878]
[1767822841355,5.64904193,136.2,136.16,6.9225878]
[1767822841555,0.31220704,136.21,136.16,6.9225878]
[1767822841755,5.64904193,136.2,136.16,6.9225878]
[1767822841960,0.31220704,136.21,136.16,6.9225878]
[1767822842160,5.64904193,136.2,136.16,6.9225878]
[1767822842361,0.31220704,136.21,136.16,6.9225878]
[1767822842555,0.30969521,136.19,136.14,6.94003554]
[1767822842865,5.6495148,136.18,136.14,6.94003554]
[1767822843066,0.30969521,136.19,136.14,6.94003554]
[1767822843265,5.65081332,136.18,136.14,6.94003554]
[1767822843457,0.30969521,136.19,136.14,6.94003554]
[1767822843658,5.65012704,136.18,136.14,6.94003554]
[1767822843866,0.30969521,136.19,136.14,6.94003554]
[1767822844063,5.65012704,136.18,136.14,6.94003554]
[1767822844263,0.30969521,136.19,136.14,6.94003554]
[1767822844565,5.65021119,136.18,136.14,6.94003554]
[1767822844768,0.30969521,136.19,136.14,6.94003554]
[1767822844970,5.65021119,136.18,136.14,6.94003554]
[1767822845264,0.30969521,136.19,136.14,6.94003554]
[1767822845467,5.65029627,136.18,136.14,6.94003554]
[1767822845666,0.30969521,136.19,136.15,6.6174]
[1767822845865,5.65029627,136.18,136.15,6.6174]
[1767822846068,0.30969521,136.19,136.15,6.6174]
[1767822846267,5.65052917,136.18,136.15,6.6174]
[1767822846469,0.30969521,136.19,136.15,6.6174]
[1767822846659,5.65038232,136.18,136.15,6.6174]
[1767822846862,0.30969521,136.19,136.15,6.6174]
[1767822847061,5.65038232,136.18,136.15,6.6174]
[1767822847369,0.30969521,136.19,136.15,6.6174]
[1767822847671,5.65046934,136.18,136.15,6.6174]
[1767822847973,0.30969521,136.19,136.15,6.6174]
[1767822848170,5.65046963,136.18,136.15,6.6174]
[1767822848376,0.30969521,136.19,136.15,6.6174]
[1767822848670,5.65055825,136.18,136.15,6.6174]
[1767822848869,0.30969521,136.19,136.15,6.6174]
[1767822849071,5.65055825,136.18,136.15,6.6174]
[1767822849367,0.30969521,136.19,136.15,6.6174]
[1767822849568,5.65064791,136.18,136.15,6.6174]
[1767822849770,0.30969521,136.19,136.15,6.6174]
[1767822849963,5.65064791,136.18,136.15,6.6174]
[1767822850164,0.30969521,136.19,136.15,6.6174]
[1767822850365,5.65074424,136.18,136.15,6.6174]
[1767822850565,0.30969521,136.19,136.15,6.6174]
[1767822850758,5.65074424,136.18,136.15,6.6174]
[1767822850963,0.30969521,136.19,136.15,6.6174]
[1767822851158,5.65074424,136.18,136.15,6.6174]
[1767822851362,0.30969521,136.19,136.15,6.6174]
[1767822851658,5.65084181,136.18,136.15,6.6174]
[1767822851862,0.30969521,136.19,136.15,6.6174]
[1767822852079,5.65084181,136.18,136.15,6.6174]
[1767822852378,0.30969521,136.19,136.15,6.6174]
[1767822852572,5.65093493,136.18,136.15,6.6174]
[1767822852765,0.30969521,136.19,136.15,6.6174]
[1767822852966,5.65093493,136.18,136.15,6.6174]
[1767822853168,0.30969521,136.19,136.15,6.6174]
[1767822853472,5.65102921,136.18,136.15,6.6174]
[1767822853674,0.30969521,136.19,136.15,6.6174]
[1767822853973,5.65102921,136.18,136.15,6.6174]
[1767822854172,0.30969521,136.19,136.15,6.6174]
[1767822854374,5.65097062,136.18,136.15,6.6174]
[1767822854565,0.30969521,136.19,136.15,6.6174]
[1767822854770,5.65080092,136.18,136.15,6.6174]
[1767822855070,0.30969521,136.19,136.15,6.6174]
[1767822855265,5.65073501,136.18,136.15,6.6174]
[1767822855471,0.30969521,136.19,136.15,6.6174]
[1767822855771,5.65058148,136.18,136.15,6.6174]
[1767822855967,0.30969521,136.19,136.15,6.6174]
[1767822856166,5.65058148,136.18,136.15,6.6174]
[1767822856363,0.30969521,136.19,136.15,6.6174]
[1767822856570,5.65032583,136.18,136.15,6.6174]
[1767822856875,0.30969521,136.19,136.15,6.6174]
[1767822857175,5.65032583,136.18,136.15,6.6174]
[1767822857368,0.30969521,136.19,136.15,6.6174]
[1767822857573,5.65009483,136.18,136.15,6.6174]
[1767822857777,0.30969521,136.19,136.15,6.6174]
[1767822857976,5.65009483,136.18,136.15,6.6174]
[1767822858173,0.30969521,136.19,136.15,6.6174]
[1767822858369,5.64994391,136.18,136.15,6.6174]
[1767822858569,0.30969521,136.23,136.16,0.32253554]
[1767822859571,0.30969521,136.22,136.16,6.93943554]
[1767822862280,0.30969521,136.24,136.18,0.32253554]
[1767822863581,0.30969521,136.23,136.18,0.32253554]
[1767822868285,6.92329521,136.23,136.18,0.32253554]
[1767822870489,5.56568561,136.22,136.18,0.32253554]
[1767822870789,5.56568561,136.21,136.18,0.32253554]
[1767822870995,6.92329521,136.23,136.18,0.32253554]
[1767822871292,5.5660367,136.22,136.18,0.32253554]
[1767822871493,5.5660367,136.21,136.18,0.32253554]
[1767822871691,6.92329521,136.23,136.18,0.32253554]
[1767822871894,5.56600452,136.22,136.18,0.32253554]
[1767822872086,5.56600452,136.21,136.18,0.32253554]
[1767822872389,6.92329521,136.23,136.18,0.32253554]
[1767822872588,5.56598626,136.22,136.18,0.32253554]
[1767822872779,5.56598626,136.21,136.18,0.32253554]
[1767822872982,6.92329521,136.23,136.18,0.32253554]
[1767822873186,5.56598192,136.22,136.18,0.32253554]
[1767822873385,5.56598192,136.21,136.18,0.32253554]
[1767822873583,6.92329521,136.23,136.18,0.32253554]
[1767822873787,5.56595742,136.22,136.18,0.32253554]
[1767822874083,5.56595742,136.21,136.18,0.32253554]
[1767822874386,6.92329521,136.23,136.18,0.32253554]
[1767822874587,5.56593094,136.22,136.18,0.32253554]
[1767822874796,5.56593094,136.21,136.17,6.6164]
[1767822874997,0.32948313,136.22,136.17,6.6164]
[1767822875187,5.5659331,136.21,136.17,6.6164]
[1767822875386,0.32948313,136.22,136.17,6.6164]
[1767822875594,5.5659079,136.21,136.17,6.6164]
[1767822875788,0.32948313,136.22,136.17,6.6164]
[1767822875987,5.5659079,136.21,136.17,6.6164]
[1767822876182,0.32948313,136.22,136.17,6.6164]
[1767822876386,5.56583023,136.21,136.17,6.6164]
[1767822876588,0.32948313,136.22,136.17,6.6164]
[1767822876892,5.56588286,136.21,136.17,6.6164]
[1767822877191,0.32948313,136.22,136.17,6.6164]
[1767822877495,5.56585798,136.21,136.16,0.32917658]
[1767822877695,0.32948313,136.22,136.16,0.32917658]
[1767822877882,5.56586037,136.21,136.16,0.32917658]
[1767822878081,0.32948313,136.22,136.16,0.32917658]
[1767822878292,5.56578096,136.21,136.16,0.32917658]
[1767822878486,0.32948313,136.22,136.16,0.32917658]
[1767822878682,0.32948313,136.2,136.14,0.32917658]
[1767822878888,5.56649695,136.19,136.14,0.32917658]
[1767822879088,0.32948313,136.2,136.14,0.32917658]
[1767822879289,5.56677222,136.19,136.14,0.32917658]
[1767822879490,0.32948313,136.2,136.14,0.32917658]
[1767822879693,5.56670075,136.19,136.14,6.94697658]
[1767822879891,6.94458313,136.2,136.14,6.94697658]
[1767822880093,5.56669835,136.19,136.14,6.94697658]
[1767822880292,6.94458313,136.2,136.14,6.94697658]
[1767822880591,5.56657383,136.19,136.14,6.94697658]
[1767822880799,6.94458313,136.2,136.14,6.94697658]
[1767822881094,5.56657383,136.19,136.14,6.94697658]
[1767822881294,6.94458313,136.2,136.14,6.94697658]
[1767822881492,0.32948313,136.18,136.12,0.32917658]
[1767822881691,0.32948313,136.16,136.1,87.12917658]
[1767822881893,106.25386187,136.22,136.11,0.32917658]
[1767822882094,0.32948313,136.2,136.11,0.32917658]
[1767822882289,0.32948313,136.18,136.11,0.32917658]
[1767822882498,5.5677696,136.17,136.11,0.32917658]
[1767822882700,0.32948313,136.18,136.11,0.32917658]
[1767822882903,5.56588961,136.17,136.11,0.32917658]
[1767822883094,0.32948313,136.18,136.11,0.32917658]
[1767822883292,5.56598484,136.17,136.11,0.32917658]
[1767822883488,0.32948313,136.18,136.11,0.32917658]
[1767822883700,5.56466204,136.17,136.11,0.32917658]
[1767822883903,0.32948313,136.18,136.11,0.32917658]
[1767822884098,5.56466204,136.17,136.11,0.32917658]
[1767822884298,0.32948313,136.18,136.11,0.32917658]
[1767822884601,5.5634741,136.17,136.11,0.32917658]
[1767822884900,0.32948313,136.18,136.11,0.32917658]
[1767822885102,5.56347412,136.17,136.11,0.32917658]
[1767822885299,0.32948313,136.18,136.11,0.32917658]
[1767822885497,5.56253137,136.17,136.11,0.32917658]
[1767822885703,0.32948313,136.18,136.11,0.32917658]
[1767822886001,5.56253137,136.17,136.11,0.32917658]
[1767822886201,0.32948313,136.18,136.11,0.32917658]
[1767822886401,5.5616433,136.17,136.11,0.32917658]
[1767822886704,0.32948313,136.18,136.11,0.32917658]
[1767822886903,5.5616433,136.17,136.11,6.94837658]
[1767822887105,0.32948313,136.18,136.11,6.94837658]
[1767822887308,5.56163898,136.17,136.11,6.94837658]
[1767822887500,0.32948313,136.18,136.11,6.94837658]
[1767822887696,5.56087454,136.17,136.11,6.94837658]
[1767822887896,0.32948313,136.18,136.11,6.94837658]
[1767822888099,5.56087454,136.17,136.11,6.94837658]
[1767822888297,0.32948313,136.18,136.11,6.94837658]
[1767822888499,5.56011712,136.17,136.11,6.94837658]
[1767822888699,0.32948313,136.18,136.11,6.94837658]
[1767822888905,5.56011712,136.17,136.11,6.94837658]
[1767822889108,0.32948313,136.18,136.11,6.94837658]
[1767822889406,5.56011712,136.17,136.11,6.94837658]
[1767822889607,0.32948313,136.18,136.11,6.94837658]
[1767822889806,5.55936348,136.17,136.11,6.94837658]
[1767822890005,0.32948313,136.18,136.11,6.94837658]
[1767822890207,5.55936348,136.17,136.12,6.6188]
[1767822890398,0.32948313,136.18,136.12,6.6188]
[1767822890600,5.55866033,136.17,136.12,6.6188]
[1767822890798,0.32948313,136.18,136.12,6.6188]
[1767822890998,5.55866033,136.17,136.12,6.6188]
[1767822891205,0.32948313,136.18,136.12,6.6188]
[1767822891503,5.55800279,136.17,136.12,6.6188]
[1767822891706,0.32948313,136.18,136.12,6.6188]
[1767822891904,5.55800279,136.17,136.12,6.6188]
[1767822892203,0.32948313,136.18,136.12,6.6188]
[1767822892403,5.55738682,136.17,136.12,6.6188]
[1767822892604,0.32948313,136.18,136.12,6.6188]
[1767822892908,5.55738682,136.17,136.12,6.6188]
[1767822893201,5.71215993,136.16,136.13,6.6184]
[1767822893402,0.32948313,136.18,136.13,6.6184]
[1767822904716,0.32948313,136.18,136.13,6.94117629]
[1767822905315,5.63105247,136.17,136.13,6.94117629]
[1767822905613,0.32948313,136.18,136.13,6.94117629]
[1767822905811,5.63105247,136.17,136.13,6.94117629]
[1767822906014,0.32948313,136.18,136.13,6.94117629]
[1767822906213,5.63105247,136.17,136.14,6.6179]
[1767822906414,0.32948313,136.18,136.14,6.6179]
[1767822908318,0.32220256,136.2,136.15,6.6174]
[1767822908517,5.63151482,136.19,136.15,6.6174]
[1767822908821,5.63151482,136.18,136.15,6.6174]
[1767822909013,0.32220256,136.2,136.15,6.6174]
[1767822909208,5.95371249,136.19,136.15,6.6174]
[1767822909409,5.63150993,136.18,136.15,6.6174]
[1767822915227,5.63150993,136.18,136.14,0.32277629]
[1767822921236,0.32220256,136.17,136.12,6.6187]
[1767822921534,5.63150993,136.16,136.12,6.94147629]
[1767822922435,5.63150993,136.16,136.12,0.32277629]
[1767822923326,5.63150993,136.16,136.12,6.94157629]
[1767822927639,5.63150993,136.16,136.13,6.94117629]
[1767822927830,5.63150993,136.15,136.13,6.94117629]
[1767822928029,6.93780256,136.19,136.13,6.94117629]
[1767822928238,5.6440949,136.18,136.13,6.94117629]
[1767822928539,5.6440949,136.17,136.13,6.94117629]
[1767822928836,9.49e-05,136.16,136.14,6.94047629]
[1767822929036,0.32220256,136.19,136.14,6.94047629]
[1767822940650,5.56191051,136.18,136.14,6.94047629]
[1767822940842,0.32220256,136.19,136.14,6.94047629]
[1767822941041,5.56191051,136.18,136.14,6.94047629]
[1767822941238,0.32220256,136.19,136.14,6.94047629]
[1767822941438,5.56151547,136.18,136.14,6.94047629]
[1767822941643,0.32220256,136.19,136.14,6.94047629]
[1767822941945,5.56151547,136.18,136.14,6.94047629]
[1767822942150,0.32220256,136.19,136.14,6.94047629]
[1767822942350,5.56117656,136.18,136.14,6.94047629]
[1767822942547,0.32220256,136.19,136.14,6.94047629]
[1767822942748,5.5611875,136.18,136.14,6.94047629]
[1767822942949,0.32220256,136.19,136.14,6.94047629]
[1767822943145,5.5611875,136.18,136.14,6.94047629]
[1767822943451,6.615,136.2,136.15,0.32794597]
[1767822943750,5.5605535,136.19,136.15,0.32794597]
[1767822943949,5.5605535,136.18,136.15,0.32794597]
[1767822944154,6.94775656,136.2,136.15,0.32794597]
[1767822944354,5.56065792,136.19,136.15,0.32794597]
[1767822944550,5.56065792,136.18,136.15,0.32794597]
[1767822944745,6.94775656,136.2,136.15,0.32794597]
[1767822944950,5.56068653,136.19,136.15,0.32794597]
[1767822945150,5.56068653,136.18,136.15,0.32794597]
[1767822945353,6.94775656,136.2,136.15,0.32794597]
[1767822945553,5.56046755,136.19,136.15,0.32794597]
[1767822945754,5.56046755,136.18,136.15,0.32794597]
[1767822945961,6.94775656,136.2,136.15,0.32794597]
[1767822946158,5.56046534,136.19,136.15,0.32794597]
[1767822946356,5.56046534,136.18,136.15,0.32794597]
[1767822946555,6.94775656,136.2,136.15,0.32794597]
[1767822946757,5.56031259,136.19,136.15,0.32794597]
[1767822946955,5.56031259,136.18,136.15,0.32794597]
[1767822947160,6.94775656,136.2,136.15,0.32794597]
[1767822947457,5.56020464,136.19,136.15,0.32794597]
[1767822947654,5.56020464,136.18,136.15,0.32794597]
[1767822947855,6.94775656,136.2,136.15,0.32794597]
[1767822948056,5.56020464,136.19,136.15,0.32794597]
[1767822948256,5.56020464,136.18,136.15,0.32794597]
[1767822948456,6.94775656,136.2,136.15,0.32794597]
[1767822948656,5.56013572,136.19,136.15,0.32794597]
[1767822948962,5.56013572,136.18,136.15,0.32794597]
[1767822949262,6.94775656,136.2,136.15,0.32794597]
[1767822949560,5.56010469,136.19,136.14,6.94564597]
[1767822949761,5.56010469,136.18,136.14,6.94564597]
[1767822949964,6.94775656,136.2,136.14,6.94564597]
[1767822950262,5.5601069,136.19,136.14,6.94564597]
[1767822950462,5.5601069,136.18,136.14,6.94564597]
[1767822950663,6.94775656,136.2,136.14,6.94564597]
[1767822950960,5.56011534,136.19,136.14,6.94564597]
[1767822951160,5.56011534,136.18,136.14,6.94564597]
[1767822951363,6.94775656,136.2,136.14,6.94564597]
[1767822951561,5.56016133,136.19,136.14,6.94564597]
[1767822951763,5.56016133,136.18,136.14,6.94564597]
[1767822952067,6.94775656,136.2,136.14,6.94564597]
[1767822952255,5.5601008,136.19,136.14,6.94564597]
[1767822952456,5.5601008,136.18,136.14,6.94564597]
[1767822952756,6.94775656,136.2,136.14,6.94564597]
[1767822952956,5.5601008,136.19,136.14,6.94564597]
[1767822953164,5.5601008,136.18,136.14,6.94564597]
[1767822953362,6.94775656,136.2,136.14,6.94564597]
[1767822953562,5.54264823,136.19,136.14,6.94564597]
[1767822953753,5.54264823,136.18,136.14,6.94564597]
[1767822953953,6.94775656,136.2,136.14,6.94564597]
[1767822954162,5.54264823,136.19,136.14,6.94564597]
[1767822954363,5.54264823,136.18,136.14,6.94564597]
[1767822954552,6.94775656,136.2,136.14,6.94564597]
[1767822954764,5.54262842,136.19,136.14,6.94564597]
[1767822954965,5.54262842,136.18,136.14,6.94564597]
[1767822955267,6.94775656,136.2,136.14,6.94564597]
[1767822955457,5.54263254,136.19,136.14,6.94564597]
[1767822955657,5.54263254,136.18,136.14,6.94564597]
[1767822955857,6.94775656,136.2,136.14,6.94564597]
[1767822956066,5.54263254,136.19,136.14,6.94564597]
[1767822956267,5.54263254,136.18,136.14,6.94564597]
[1767822956457,6.94775656,136.2,136.14,6.94564597]
[1767822956660,5.54266064,136.19,136.14,6.94564597]
[1767822956960,5.54266064,136.18,136.14,6.94564597]
[1767822957156,6.94775656,136.2,136.14,6.94564597]
[1767822957359,5.54271289,136.19,136.14,6.94564597]
[1767822957563,5.54271289,136.18,136.14,6.94564597]
[1767822957769,6.94775656,136.2,136.14,6.94564597]
[1767822957970,5.54271289,136.19,136.14,6.94564597]
[1767822958171,5.54271289,136.18,136.14,6.94564597]
[1767822958368,6.94775656,136.2,136.14,6.94564597]
[1767822958561,5.54278577,136.19,136.14,6.94564597]
[1767822958868,5.54278577,136.18,136.14,6.94564597]
[1767822959066,6.94775656,136.2,136.14,6.94564597]
[1767822959270,5.5428625,136.19,136.14,6.94564597]
[1767822959466,5.5428625,136.18,136.14,6.94564597]
[1767822959672,6.94775656,136.2,136.14,6.94564597]
[1767822959873,5.5428834,136.19,136.14,6.94564597]
[1767822960069,5.5428834,136.18,136.14,6.94564597]
[1767822960373,6.94775656,136.2,136.14,6.94564597]
[1767822960680,5.54298488,136.19,136.14,6.94564597]
[1767822960864,5.54298488,136.18,136.14,6.94564597]
[1767822961159,6.94775656,136.2,136.14,6.94564597]
[1767822961357,5.54313408,136.19,136.14,6.94564597]
[1767822961567,5.54313408,136.18,136.14,6.94564597]
[1767822961869,6.94775656,136.2,136.14,6.94564597]
[1767822962064,5.54304077,136.19,136.14,6.94564597]
[1767822962259,5.54304077,136.18,136.14,6.94564597]
[1767822962459,6.94775656,136.2,136.14,6.94564597]
[1767822962660,5.54318801,136.19,136.14,6.94564597]
[1767822962867,5.54318801,136.18,136.14,6.94564597]
[1767822963069,6.94775656,136.2,136.14,6.94564597]
[1767822963268,5.54334991,136.19,136.14,6.94564597]
[1767822963468,5.54334991,136.18,136.14,6.94564597]
[1767822963677,6.94775656,136.2,136.14,6.94564597]
[1767822963977,5.54336784,136.19,136.14,6.94564597]
[1767822964274,5.54336784,136.18,136.14,6.94564597]
[1767822964476,6.94775656,136.2,136.14,6.94564597]
[1767822964775,5.54358316,136.19,136.14,6.94564597]
[1767822964965,5.54358316,136.18,136.14,6.94564597]
[1767822965164,6.94775656,136.2,136.14,6.94564597]
[1767822965464,5.54383561,136.19,136.14,6.94564597]
[1767822965661,5.54383561,136.18,136.14,6.94564597]
[1767822965864,6.94775656,136.2,136.14,6.94564597]
[1767822966061,5.54384026,136.19,136.14,6.94564597]
[1767822966270,5.54384026,136.18,136.14,6.94564597]
[1767822966473,6.94775656,136.2,136.14,6.94564597]
[1767822966672,5.54414005,136.19,136.14,6.94564597]
[1767822966865,5.54414005,136.18,136.14,6.94564597]
[1767822967066,6.94775656,136.2,136.14,6.94564597]
[1767822967268,5.54414005,136.19,136.14,6.94564597]
[1767822967466,6.94775656,136.2,136.14,6.94564597]
[1767822967467,5.54414005,136.18,136.14,6.94564597]
[1767822967777,6.94775656,136.2,136.14,6.94564597]
[1767822967977,5.54450755,136.19,136.14,6.94564597]
[1767822968277,5.54450755,136.18,136.14,6.94564597]
[1767822968476,6.94775656,136.2,136.14,6.94564597]
[1767822968676,5.54495098,136.19,136.14,6.94564597]
[1767822968880,5.54495098,136.18,136.14,6.94564597]
[1767822969178,6.94775656,136.2,136.14,6.94564597]
[1767822969381,5.54545684,136.19,136.14,6.94564597]
[1767822969574,5.54545684,136.18,136.14,6.94564597]
[1767822969775,6.94775656,136.2,136.14,6.94564597]
[1767822969972,5.54545684,136.19,136.14,6.94564597]
[1767822970174,5.54545684,136.18,136.14,6.94564597]
[1767822970374,6.94775656,136.2,136.14,6.94564597]
[1767822970673,5.54604922,136.19,136.14,6.94564597]
[1767822970874,5.54604922,136.18,136.14,6.94564597]
[1767822971082,6.94775656,136.2,136.14,6.94564597]
[1767822971281,5.54674713,136.19,136.14,6.94564597]
[1767822971482,5.54674713,136.18,136.14,6.94564597]
[1767822971685,6.94775656,136.2,136.14,6.94564597]
[1767822971882,5.54674713,136.19,136.14,6.94564597]
[1767822972181,5.54674713,136.18,136.14,6.94564597]
[1767822972480,6.94775656,136.2,136.14,6.94564597]
[1767822972681,5.54759973,136.19,136.14,6.94564597]
[1767822972982,5.54759973,136.18,136.14,6.94564597]
[1767822973381,6.94775656,136.2,136.14,6.94564597]
[1767822973581,5.548648,136.19,136.14,6.94564597]
[1767822973783,5.548648,136.18,136.14,6.94564597]
[1767822973982,6.94775656,136.2,136.14,6.94564597]
[1767822974278,5.548648,136.19,136.14,6.94564597]
[1767822974475,5.548648,136.18,136.14,6.94564597]
[1767822974670,6.94775656,136.2,136.14,6.94564597]
[1767822974880,5.54886301,136.19,136.14,6.94564597]
[1767822975084,5.54886301,136.18,136.14,6.94564597]
[1767822975279,6.94775656,136.2,136.14,6.94564597]
[1767822975480,5.54911178,136.19,136.14,6.94564597]
[1767822975682,5.54911178,136.18,136.14,6.94564597]
[1767822975881,6.94775656,136.2,136.14,6.94564597]
[1767822976081,5.54911178,136.19,136.14,6.94564597]
[1767822976277,5.54911178,136.18,136.14,6.94564597]
[1767822976576,6.94775656,136.2,136.14,6.94564597]
[1767822976777,5.54915634,136.19,136.14,6.94564597]
[1767822976974,5.54915634,136.18,136.14,6.94564597]
[1767822977178,6.94775656,136.2,136.14,6.94564597]
[1767822977379,5.54920796,136.19,136.14,6.94564597]
[1767822977588,5.54920796,136.18,136.14,6.94564597]
[1767822977883,6.94775656,136.2,136.14,6.94564597]
[1767822978084,5.54920796,136.19,136.14,6.94564597]
[1767822978278,5.54920796,136.18,136.14,6.94564597]
[1767822978579,6.94775656,136.2,136.14,6.94564597]
[1767822978774,5.54926698,136.19,136.14,6.94564597]
[1767822979073,5.54926698,136.18,136.14,6.94564597]
[1767822979274,6.94775656,136.2,136.14,6.94564597]
[1767822979483,5.54933384,136.19,136.14,6.94564597]
[1767822979679,5.54933384,136.18,136.14,6.94564597]
[1767822979880,6.94775656,136.2,136.14,6.94564597]
[1767822980080,5.54933384,136.19,136.14,6.94564597]
[1767822980281,5.54933384,136.18,136.14,6.94564597]
[1767822980480,6.94775656,136.2,136.14,6.94564597]
[1767822980682,5.54976531,136.19,136.14,6.94564597]
[1767822980976,5.54976531,136.18,136.14,6.94564597]
[1767822981276,6.94775656,136.2,136.14,6.94564597]
[1767822981482,5.55031846,136.19,136.14,6.94564597]
[1767822981780,5.55031846,136.18,136.14,6.94564597]
[1767822981981,6.94775656,136.2,136.14,6.94564597]
[1767822982181,5.55031846,136.19,136.14,6.94564597]
[1767822982382,5.55031846,136.18,136.14,6.94564597]
[1767822982685,6.94775656,136.2,136.14,6.94564597]
[1767822982884,5.55113253,136.19,136.14,6.94564597]
[1767822983079,5.85594725,136.18,136.14,6.6177]
[1767822983281,0.30481472,136.18,136.14,6.6177]
[1767822983476,0.30481472,136.21,136.15,6.617]
[1767822983781,0.30481472,136.23,136.16,0.33118639]
[1767822983986,5.85996372,136.22,136.16,0.33118639]
[1767822984187,5.555149,136.21,136.16,0.33118639]
[1767822984391,5.555149,136.21,136.16,6.94808639]
[1767822993694,5.555149,136.21,136.17,0.32234424]
[1767823000402,0.30481472,136.22,136.17,0.32234424]
[1767823000804,5.5410805,136.21,136.17,0.32234424]
[1767823000999,0.30481472,136.22,136.17,0.32234424]
[1767823001200,5.5410805,136.21,136.17,0.32234424]
[1767823001499,0.30481472,136.22,136.17,0.32234424]
[1767823001699,5.54095886,136.21,136.17,0.32234424]
[1767823001899,0.30481472,136.22,136.17,0.32234424]
[1767823002099,5.54095642,136.21,136.17,0.32234424]
[1767823002302,0.30481472,136.22,136.17,0.32234424]
[1767823002501,5.54086669,136.21,136.17,0.32234424]
[1767823002703,0.30481472,136.22,136.17,0.32234424]
[1767823002901,5.54086669,136.21,136.17,0.32234424]
[1767823003102,0.30481472,136.22,136.17,0.32234424]
[1767823003302,5.54081212,136.21,136.17,0.32234424]
[1767823003504,0.30481472,136.22,136.17,0.32234424]
[1767823003799,5.54081212,136.21,136.17,0.32234424]
[1767823004001,0.30481472,136.22,136.17,0.32234424]
[1767823004299,5.54081212,136.21,136.17,0.32234424]
[1767823004495,0.30481472,136.22,136.17,0.32234424]
[1767823004702,5.54079235,136.21,136.17,0.32234424]
[1767823005001,0.30481472,136.22,136.17,0.32234424]
[1767823005201,5.54079235,136.21,136.17,0.32234424]
[1767823005400,0.30481472,136.22,136.17,0.32234424]
[1767823005603,5.54078606,136.21,136.17,0.32234424]